fUSD/lending_fUSD_20250422
["ID","MTS","AMOUNT","RATE_DAILY","PERIOD"]
[358590147,1745295043179,-861.88,0.000467,2]
[358590148,1745295043189,-172.37,0.000467,2]
[358590149,1745295043198,-1245.3981211,0.00046789,19]
[358590150,1745295043208,-2837.12,0.000468,2]
[358590151,1745295043217,-2999.99,0.000468,2]
[358590152,1745295043226,-150.73,0.00046816,30]
[358590153,1745295043236,-171.06515992,0.00046869,25]
[358590154,1745295043245,-2039.11,0.00046888,2]
[358590155,1745295043255,-844.78623919,0.00046921,30]
[358590156,1745295043265,-152.44,0.0004699,2]
[358590157,1745295043275,-900.0,0.00047,2]
[358590158,1745295043284,-12166.52693579,0.00047,7]
[358590159,1745295043294,-1177.6352987,0.00047,120]
[358590160,1745295043303,-222.0,0.0004706,2]
[358590161,1745295043312,-211.0,0.0004706,2]
[358590162,1745295043322,-209.0,0.0004706,2]
[358590163,1745295043331,-150.0,0.00047157,7]
[358590164,1745295043341,-844.78623919,0.00047246,30]
[358590165,1745295043353,-292.11231452,0.0004732,2]
[358590166,1745295043362,-150.0,0.00047364,30]
[358590167,1745295043372,-150.0,0.00047364,30]
[358590168,1745295043382,-500.0,0.00047397,120]
[358590169,1745295043391,-500.0,0.00047397,120]
[358590170,1745295043401,-500.0,0.00047397,120]
[358590171,1745295043411,-500.0,0.00047397,120]
[358590172,1745295043420,-500.0,0.00047397,120]
[358590173,1745295043429,-500.0,0.00047397,120]
[358590175,1745295043439,-500.0,0.00047397,120]
[358590176,1745295043449,-345.45956752,0.00047397,120]
[358590178,1745295043458,-500.0,0.00047397,120]
[358590180,1745295043468,-500.0,0.00047397,120]
[358590181,1745295043477,-500.0,0.00047397,120]
[358590182,1745295043487,-500.0,0.00047397,120]
[358590183,1745295043497,-500.0,0.00047397,120]
[358590184,1745295043506,-500.0,0.00047397,120]
[358590185,1745295043515,-500.0,0.00047397,120]
[358590186,1745295043524,-500.0,0.00047397,120]
[358590187,1745295043534,-500.0,0.00047397,120]
[358590188,1745295043543,-250.0,0.00047397,120]
[358590189,1745295043552,-256.04409771,0.00047484,7]
[358590190,1745295043562,-844.7862392,0.0004752,30]
[358590191,1745295043571,-290.72675421,0.0004755,30]
[358590192,1745295043580,-487.87922027,0.000476,15]
[358590193,1745295043589,-151.0,0.00047662,14]
[358590194,1745295043599,-151.0,0.00047662,14]
[358590195,1745295043608,-153.96896,0.00047662,14]
[358590196,1745295043617,-157.26475,0.00047662,14]
[358590197,1745295043627,-151.0,0.00047662,14]
[358590198,1745295043636,-151.0,0.00047662,14]
[358590199,1745295043646,-154.730392,0.00047662,14]
[358590200,1745295043655,-152.186648,0.00047662,14]
[358590201,1745295043665,-151.0,0.00047662,14]
[358590202,1745295043674,-155.151368,0.00047662,14]
[358590203,1745295043683,-151.0,0.00047662,14]
[358590204,1745295043692,-151.0,0.00047662,14]
[358590205,1745295043702,-151.0,0.00047662,14]
[358590206,1745295043711,-166.854143,0.00047662,14]
[358590207,1745295043721,-151.0,0.00047662,14]
[358590208,1745295043731,-156.770824,0.00047662,14]
[358590209,1745295043740,-151.0,0.00047662,14]
[358590210,1745295043749,-160.910301,0.00047662,14]
[358590211,1745295043759,-154.446997,0.00047662,14]
[358590212,1745295043769,-155.882091,0.00047662,14]
[358590213,1745295043778,-151.0,0.00047662,14]
[358590214,1745295043787,-151.0,0.00047662,14]
[358590215,1745295043797,-151.0,0.00047662,14]
[358590216,1745295043806,-151.0,0.00047662,14]
[358590217,1745295043815,-151.0,0.00047662,14]
[358590218,1745295043824,-161.377726,0.00047662,14]
[358590219,1745295043832,-151.0,0.00047662,14]
[358590220,1745295043841,-623.8031,0.00047662,2]
[358590221,1745295043850,-623.8031,0.00047662,2]
[358590222,1745295043860,-151.0,0.00047662,14]
[358590223,1745295043869,-151.0,0.00047662,14]
[358590224,1745295043878,-151.0,0.00047662,14]
[358590225,1745295043887,-151.0,0.00047662,14]
[358590226,1745295043898,-151.0,0.00047662,14]
[358590227,1745295043909,-151.0,0.00047662,14]
[358590228,1745295043919,-151.0,0.00047662,14]
[358590229,1745295043928,-151.0,0.00047662,14]
[358590230,1745295043937,-646.6774063,0.00047662,2]
[358590231,1745295043948,-3445.4588533,0.00047662,2]
[358590232,1745295043957,-7885.1869548,0.00047662,2]
[358590233,1745295043966,-14436.8970022,0.00047662,2]
[358590234,1745295043975,-151912.8904612,0.00047662,2]
[358590235,1745295043987,-359.34752932,0.00047669,2]
[358590236,1745295043997,-151.0,0.00047669,2]
[358590237,1745295044007,-151.0,0.00047669,2]
[358590238,1745295044016,-500.46,0.00047671,30]
[358590239,1745295044026,-500.0,0.00047671,10]
[358590240,1745295044035,-151.0,0.00047671,5]
[358590241,1745295044045,-158.87316,0.00047671,14]
[358590242,1745295044054,-3786.0,0.00047671,120]
[358590243,1745295044064,-588.56414981,0.00047689,15]
[358590244,1745295044073,-450.0,0.00047695,30]
[358590245,1745295044082,-253.68109432,0.00047696,30]
[358590246,1745295044092,-200.0,0.00047697,5]
[358590247,1745295044101,-162.27172,0.00047697,14]
[358590248,1745295044111,-200.0,0.000477,72]
[358590249,1745295044120,-150.0,0.000477,116]
[358590250,1745295044130,-235476.991463,0.000477,120]
[358590251,1745295044139,-151.0,0.000477,14]
[358590252,1745295044150,-151.0,0.000477,14]
[358590253,1745295044159,-1000.0,0.000477,2]
[358590254,1745295044168,-1552.84,0.000477,2]
[358590255,1745295044178,-151.0,0.00047704,14]
[358590256,1745295044187,-154.864559,0.00047704,14]
[358590257,1745295044196,-151.0,0.00047704,14]
[358590258,1745295044205,-151.0,0.00047704,14]
[358590259,1745295044215,-151.0,0.00047704,14]
[358590260,1745295044224,-150.0,0.00047711,2]
[358590261,1745295044233,-150.0,0.00047711,2]
[358590262,1745295044243,-568.41567496,0.00047711,2]
[358590263,1745295044252,-852.21573774,0.00047711,2]
[358590264,1745295044263,-150.0,0.00047711,2]
[358590265,1745295044272,-150.0,0.00047711,2]
[358590266,1745295044281,-150.0,0.00047711,2]
[358590267,1745295044290,-870.69992861,0.00047711,2]
[358590268,1745295044299,-894.62205544,0.00047711,2]
[358590269,1745295044308,-723.3638133,0.00047711,2]
[358590270,1745295044317,-157.486162,0.00047713,14]
[358590271,1745295044326,-151.0,0.00047713,14]
[358590272,1745295044335,-296.593929,0.00047713,14]
[358590273,1745295044344,-151.0,0.00047713,14]
[358590274,1745295044354,-160.216767,0.00047713,14]
[358590275,1745295044363,-151.0,0.00047713,14]
[358590276,1745295044373,-151.0,0.00047713,14]
[358590277,1745295044383,-151.0,0.00047713,14]
[358590278,1745295044392,-623.8031,0.00047713,2]
[358590279,1745295044402,-623.8031,0.00047713,2]
[358590280,1745295044411,-152.32548,0.00047713,14]
[358590281,1745295044420,-152.674024,0.00047713,14]
[358590282,1745295044429,-159.965842,0.00047713,14]
[358590283,1745295044438,-151.0,0.00047713,14]
[358590284,1745295044448,-153.795129,0.00047713,14]
[358590285,1745295044458,-162.60824,0.00047713,14]
[358590286,1745295044467,-154.295653,0.00047713,14]
[358590287,1745295044476,-153.924331,0.00047713,14]
[358590288,1745295044485,-151.0,0.00047713,14]
[358590289,1745295044494,-151.0,0.00047713,14]
[358590290,1745295044504,-151.0,0.00047713,14]
[358590291,1745295044514,-151.0,0.00047713,14]
[358590292,1745295044523,-151.0,0.00047713,14]
[358590293,1745295044534,-151.0,0.00047713,14]
[358590294,1745295044543,-151.0,0.00047713,14]
[358590295,1745295044553,-151.0,0.00047713,14]
[358590296,1745295044562,-151.0,0.00047713,14]
[358590297,1745295044572,-154.922324,0.00047713,14]
[358590298,1745295044581,-151.0,0.00047713,14]
[358590299,1745295044590,-151.0,0.00047713,14]
[358590300,1745295044600,-158.235103,0.00047713,14]
[358590301,1745295044610,-175.0,0.00047723,30]
[358590302,1745295044619,-167.989833,0.00047736,14]
[358590303,1745295044628,-151.0,0.00047736,14]
[358590304,1745295044638,-151.0,0.00047736,14]
[358590305,1745295044647,-159.945697,0.00047736,14]
[358590306,1745295044657,-151.0,0.00047736,14]
[358590307,1745295044666,-179.524932,0.00047736,14]
[358590308,1745295044675,-162.0,0.00047737,14]
[358590309,1745295044684,-3094.17209153,0.00047738,30]
[358590310,1745295044694,-151.0,0.00047738,14]
[358590311,1745295044703,-151.0,0.00047738,14]
[358590312,1745295044712,-151.0,0.00047738,14]
[358590313,1745295044721,-151.0,0.00047738,14]
[358590314,1745295044730,-164.292431,0.00047738,14]
[358590315,1745295044740,-446.88181587,0.00047741,30]
[358590316,1745295044749,-180.90111,0.00047745,14]
[358590317,1745295044758,-180.90111,0.00047745,14]
[358590318,1745295044767,-151.0,0.00047745,14]
[358590319,1745295044776,-166.531415,0.00047745,14]
[358590320,1745295044785,-178.748493,0.00047745,14]
[358590321,1745295044794,-176.607296,0.00047745,14]
[358590322,1745295044803,-151.0,0.00047745,14]
[358590323,1745295044812,-187.589612,0.00047745,14]
[358590324,1745295044821,-151.0,0.00047745,14]
[358590325,1745295044830,-162.72649,0.00047745,14]
[358590326,1745295044840,-156.152668,0.00047745,14]
[358590327,1745295044850,-151.0,0.00047745,14]
[358590328,1745295044859,-151.0,0.00047745,14]
[358590329,1745295044869,-151.0,0.00047745,14]
[358590330,1745295044878,-151.0,0.00047745,14]
[358590331,1745295044887,-151.0,0.00047745,14]
[358590332,1745295044896,-151.0,0.00047745,14]
[358590333,1745295044908,-151.0,0.00047745,14]
[358590334,1745295044918,-161.863255,0.00047745,14]
[358590335,1745295044928,-155.232286,0.00047745,14]
[358590336,1745295044940,-151.0,0.00047745,14]
[358590337,1745295044950,-151.0,0.00047745,14]
[358590338,1745295044961,-155.276307,0.00047745,14]
[358590339,1745295044970,-168.73654,0.00047745,14]
[358590340,1745295044979,-151.0,0.00047745,14]
[358590341,1745295044990,-151.0,0.00047745,14]
[358590342,1745295044999,-156.201945,0.00047745,14]
[358590343,1745295045008,-151.0,0.00047745,14]
[358590344,1745295045018,-151.0,0.00047745,14]
[358590345,1745295045028,-151.0,0.00047745,14]
[358590346,1745295045037,-151.0,0.00047745,14]
[358590347,1745295045046,-151.0,0.00047745,14]
[358590348,1745295045055,-151.0,0.00047745,14]
[358590349,1745295045065,-534.94732,0.00047745,14]
[358590350,1745295045075,-534.94732,0.00047745,14]
[358590351,1745295045084,-151.0,0.00047745,14]
[358590352,1745295045093,-151.0,0.00047745,14]
[358590353,1745295045102,-534.94732,0.00047745,14]
[358590354,1745295045111,-534.94732,0.00047745,14]
[358590355,1745295045120,-176.954828,0.00047745,14]
[358590356,1745295045129,-176.954828,0.00047745,14]
[358590357,1745295045139,-176.954828,0.00047745,14]
[358590358,1745295045148,-176.954828,0.00047745,14]
[358590359,1745295045158,-611.122299,0.00047745,14]
[358590360,1745295045167,-611.122299,0.00047745,14]
[358590361,1745295045176,-611.122299,0.00047745,14]
[358590362,1745295045186,-611.122299,0.00047745,14]
[358590363,1745295045195,-151.56171,0.00047745,14]
[358590364,1745295045204,-151.0,0.00047746,14]
[358590365,1745295045214,-161.414771,0.00047746,14]
[358590366,1745295045223,-157.586238,0.00047746,14]
[358590367,1745295045232,-151.0,0.00047746,14]
[358590368,1745295045241,-151.0,0.00047746,14]
[358590369,1745295045251,-623.8031,0.00047746,2]
[358590370,1745295045260,-623.8031,0.00047746,2]
[358590371,1745295045269,-623.8031,0.00047746,2]
[358590372,1745295045278,-623.8031,0.00047746,2]
[358590373,1745295045288,-151.0,0.00047746,14]
[358590374,1745295045297,-151.0,0.00047746,14]
[358590375,1745295045307,-200.0,0.00047746,7]
[358590376,1745295045317,-151.0,0.00047746,14]
[358590377,1745295045326,-151.0,0.00047746,14]
[358590378,1745295045336,-646.6774063,0.00047756,2]
[358590379,1745295045345,-646.6774063,0.00047756,2]
[358590380,1745295045485,-173.493128,0.00047756,14]
[358590381,1745295045524,-169.62778,0.00047756,14]
[358590382,1745295045534,-2805.8517007,0.00047756,2]
[358590383,1745295045544,-2166.2445481,0.00047756,2]
[358590385,1745295045554,-156.001784,0.00047756,14]
[358590387,1745295045563,-151.0,0.00047756,14]
[358590389,1745295045573,-151.0,0.00047756,14]
[358590390,1745295045583,-151.542185,0.00047756,14]
[358590391,1745295045593,-151.0,0.00047756,14]
[358590392,1745295045602,-6421.3987655,0.00047756,2]
[358590393,1745295045612,-4957.6105763,0.00047756,2]
[358590394,1745295045621,-151.0,0.00047756,14]
[358590395,1745295045630,-11756.8642468,0.00047756,2]
[358590396,1745295045640,-9076.8314914,0.00047756,2]
[358590397,1745295045650,-151.0,0.00047756,14]
[358590398,1745295045660,-123712.1266586,0.00047756,2]
[358590399,1745295045669,-95511.3628559,0.00047756,2]
[358590400,1745295045679,-252.805805,0.00047756,14]
[358590401,1745295045688,-252.805805,0.00047756,14]
[358590402,1745295045697,-151.0,0.00047756,14]
[358590403,1745295045706,-152.0,0.00047768,8]
[358590404,1745295045715,-700.0,0.0004777,3]
[358590405,1745295045724,-400.0,0.0004777,3]
[358590406,1745295045736,-700.0,0.0004777,3]
[358590407,1745295045745,-151.0,0.00047788,14]
[358590408,1745295045755,-157.454094,0.00047788,14]
[358590409,1745295045764,-151.0,0.00047788,14]
[358590410,1745295045773,-151.0,0.00047788,14]
[358590411,1745295045783,-151.0,0.00047788,14]
[358590412,1745295045792,-151.0,0.00047788,14]
[358590413,1745295045802,-153.093573,0.00047788,14]
[358590414,1745295045811,-151.0,0.00047788,14]
[358590415,1745295045820,-151.0,0.00047788,14]
[358590416,1745295045829,-151.0,0.00047788,14]
[358590417,1745295045839,-151.0,0.00047788,14]
[358590418,1745295045848,-151.0,0.00047788,14]
[358590419,1745295045857,-151.0,0.00047788,14]
[358590420,1745295045866,-215.452823,0.00047788,14]
[358590421,1745295045875,-151.0,0.00047788,14]
[358590422,1745295045885,-151.0,0.00047788,14]
[358590423,1745295045894,-151.0,0.00047788,14]
[358590424,1745295045907,-151.0,0.00047788,14]
[358590425,1745295045917,-270.909815,0.00047788,14]
[358590426,1745295045926,-156.161373,0.00047788,14]
[358590427,1745295045936,-154.112275,0.00047788,14]
[358590428,1745295045946,-151.0,0.00047788,14]
[358590429,1745295045956,-151.0,0.00047788,14]
[358590430,1745295045965,-151.0,0.00047788,14]
[358590431,1745295045975,-151.0,0.00047788,14]
[358590432,1745295045985,-151.0,0.00047788,14]
[358590433,1745295045995,-151.0,0.00047788,14]
[358590434,1745295046004,-151.0,0.00047788,14]
[358590435,1745295046013,-152.30056,0.00047788,14]
[358590436,1745295046023,-151.0,0.00047788,14]
[358590438,1745295046032,-152.954763,0.00047788,14]
[358590440,1745295046041,-3289.934607,0.00047788,14]
[358590442,1745295046050,-3289.934607,0.00047788,14]
[358590444,1745295046060,-151.0,0.00047788,14]
[358590446,1745295046069,-151.0,0.00047788,14]
[358590448,1745295046079,-3289.934607,0.00047788,14]
[358590449,1745295046088,-3289.934607,0.00047788,14]
[358590450,1745295046097,-151.0,0.00047788,14]
[358590451,1745295046108,-151.0,0.00047788,14]
[358590452,1745295046117,-151.0,0.00047788,14]
[358590453,1745295046127,-226.864648,0.00047788,14]
[358590456,1745295046136,-155.852213,0.00047788,14]
[358590458,1745295046146,-151.0,0.00047788,14]
[358590460,1745295046155,-151.0,0.00047788,14]
[358590462,1745295046164,-151.0,0.00047788,14]
[358590464,1745295046174,-151.0,0.00047788,14]
[358590466,1745295046183,-159.770567,0.00047788,14]
[358590468,1745295046192,-151.0,0.00047788,14]
[358590470,1745295046202,-151.0,0.00047788,14]
[358590472,1745295046211,-151.0,0.00047788,14]
[358590474,1745295046220,-151.0,0.00047788,14]
[358590476,1745295046230,-224.993622,0.00047788,14]
[358590478,1745295046239,-224.993622,0.00047788,14]
[358590480,1745295046249,-224.993622,0.00047788,14]
[358590482,1745295046258,-224.993622,0.00047788,14]
[358590484,1745295046267,-151.0,0.00047788,14]
[358590486,1745295046277,-156.557289,0.00047788,14]
[358590488,1745295046286,-151.0,0.00047788,14]
[358590490,1745295046295,-151.0,0.00047788,14]
[358590492,1745295046304,-252.805805,0.00047788,14]
[358590494,1745295046313,-252.805805,0.00047788,14]
[358590496,1745295046324,-252.805805,0.00047788,14]
[358590498,1745295046334,-252.805805,0.00047788,14]
[358590500,1745295046343,-151.0,0.00047788,14]
[358590502,1745295046352,-276.936357,0.00047788,14]
[358590504,1745295046362,-200.0,0.00047789,7]
[358590506,1745295046371,-120489.76150733,0.00047789,2]
[358590508,1745295046382,-1210.0,0.00047789,2]
[358590510,1745295046391,-22658.42886127,0.00047789,2]
[358590512,1745295046401,-1521.39396035,0.00047789,2]
[358590514,1745295046410,-5186.5683927,0.00047789,2]
[358590516,1745295046419,-2456.36582879,0.00047789,2]
[358590518,1745295046429,-2706.04883006,0.00047789,2]
[358590520,1745295046438,-215639.8310406,0.00047789,2]
[358590522,1745295046447,-43949.52581287,0.00047789,2]
[358590524,1745295046456,-1262.15570179,0.00047789,2]
[358590527,1745295046466,-7722.96806675,0.00047789,2]
[358590529,1745295046475,-25012.43566665,0.00047789,2]
[358590531,1745295046484,-31993.47702798,0.00047789,2]
[358590533,1745295046494,-9237.2123098,0.00047789,2]
[358590535,1745295046504,-1312.06972897,0.00047789,2]
[358590536,1745295046513,-3420.07966712,0.00047789,2]
[358590538,1745295046522,-77017.27984277,0.00047789,2]
[358590540,1745295046532,-8944.71395588,0.00047789,2]
[358590543,1745295046551,-3279.73300446,0.00047789,2]
[358590546,1745295046562,-1062.4557274,0.00047789,2]
[358590561,1745295046695,-172.61,0.00023725,2]
[358590563,1745295046705,-1747.25612424,0.00042877,2]
[358590564,1745295046714,-648.55547926,0.00047789,2]
[358590565,1745295046725,-8859.87875105,0.00047789,2]
[358590566,1745295046734,-12836.14189209,0.00047789,2]
[358590567,1745295046744,-1920.83601461,0.00047789,2]
[358590568,1745295046753,-5021.18496455,0.00047789,2]
[358590569,1745295046762,-8633.07853031,0.00047789,2]
[358590570,1745295046771,-25356.71773971,0.00047789,2]
[358590571,1745295046780,-1836.92523053,0.00047789,2]
[358590573,1745295046789,-3243.44508073,0.00047789,2]
[358590575,1745295046798,-1041.35384545,0.00047789,15]
[358590577,1745295046807,-7086.63834552,0.00047789,2]
[358590579,1745295046816,-1467.36168212,0.00047789,2]
[358590581,1745295046824,-10706.29090278,0.00047789,2]
[358590583,1745295046834,-169869.17357222,0.00047789,2]
[358590584,1745295046842,-14958.15470669,0.00047789,2]
[358590586,1745295046851,-6000.0,0.00047789,2]
[358590588,1745295046861,-1471.76610094,0.00047789,2]
[358590589,1745295046870,-7776.7013557,0.00047789,2]
[358590590,1745295046879,-164372.66910073,0.00047789,2]
[358590591,1745295046888,-21300.11307699,0.00047789,2]
[358590592,1745295046898,-2500.0,0.00047789,2]
[358590593,1745295046909,-1417.26957483,0.00047789,2]
[358590594,1745295046919,-15606.7747249,0.00047789,2]
[358590595,1745295046928,-1588.26313176,0.00047789,2]
[358590596,1745295046938,-5012.18512876,0.00047789,2]
[358590597,1745295046948,-2207.36840906,0.00047789,2]
[358590598,1745295046957,-14787.27097737,0.00047789,2]
[358590599,1745295046966,-1838.17337737,0.00047789,2]
[358590600,1745295046976,-1118.51046501,0.00047789,2]
[358590601,1745295046985,-2555.15190157,0.00047789,2]
[358590602,1745295046995,-14075.97248423,0.00047789,2]
[358590603,1745295047004,-20255.99371999,0.00047789,2]
[358590604,1745295047014,-8151.94758946,0.00047789,2]
[358590605,1745295047023,-1706.98437153,0.00047789,2]
[358590606,1745295047033,-1431.72105575,0.00047789,2]
[358590607,1745295047042,-5395.71487055,0.00047789,2]
[358590608,1745295047052,-14850.27487135,0.00047789,20]
[358590609,1745295047061,-5686.47306901,0.00047789,2]
[358590610,1745295047070,-2174.17014304,0.00047789,2]
[358590611,1745295047079,-30000.0,0.00047789,2]
[358590612,1745295047089,-7485.60398369,0.00047789,2]
[358590613,1745295047099,-99728.58721701,0.00047789,2]
[358590614,1745295047108,-1726.21,0.00047789,5]
[358590615,1745295047118,-374.71351798,0.00047789,2]
[358590616,1745295047128,-390.75296263,0.00047789,2]
[358590617,1745295047137,-78087.20105186,0.00047789,2]
[358590618,1745295047146,-703.73556135,0.00047789,2]
[358590619,1745295047155,-362.39005683,0.00047789,2]
[358590620,1745295047165,-348.51861124,0.00047789,2]
[358590621,1745295047175,-762.11346108,0.00047789,2]
[358590622,1745295047184,-1030.1837266,0.00047789,2]
[358590623,1745295047193,-151.40004617,0.00047789,2]
[358590624,1745295047202,-249.28917148,0.00047789,2]
[358590625,1745295047211,-164.52296043,0.00047789,2]
[358590626,1745295047220,-875.88529224,0.00047789,2]
[358590627,1745295047230,-1042.10682398,0.00047789,2]
[358590628,1745295047239,-595.17015002,0.00047789,2]
[358590629,1745295047248,-184.18124056,0.00047789,2]
[358590630,1745295047258,-643.0,0.00047789,2]
[358590631,1745295047267,-970.90256733,0.00047789,2]
[358590632,1745295047276,-573.57814592,0.00047789,2]
[358590633,1745295047285,-175.55250485,0.00047789,2]
[358590634,1745295047297,-154.57969038,0.00047789,2]
[358590635,1745295047306,-550.0,0.00047789,2]
[358590636,1745295047315,-1009.07763036,0.00047789,2]
[358590637,1745295047324,-803.91214622,0.00047789,2]
[358590638,1745295047333,-229.20434418,0.00047789,2]
[358590639,1745295047342,-173.94734271,0.00047789,2]
[358590640,1745295047351,-375.84284731,0.00047789,2]
[358590641,1745295047360,-1034.6089773,0.00047789,2]
[358590642,1745295047369,-563.79702033,0.00047789,2]
[358590643,1745295047379,-150.0,0.00047789,2]
[358590644,1745295047387,-627.01712863,0.00047789,2]
[358590645,1745295047396,-214.94650815,0.00047789,2]
[358590646,1745295047406,-450.75406486,0.00047789,2]
[358590647,1745295047415,-1068.85398059,0.00047789,2]
[358590648,1745295047424,-580.25711453,0.00047789,2]
[358590649,1745295047433,-342.77333921,0.00047789,2]
[358590650,1745295047442,-1100.0,0.00047789,2]
[358590651,1745295047451,-913.70336326,0.00047789,2]
[358590652,1745295047460,-482.38797446,0.00047789,2]
[358590653,1745295047470,-170.52072196,0.00047789,2]
[358590654,1745295047479,-229.9612849,0.00047789,2]
[358590655,1745295047488,-548.49049318,0.00047789,2]
[358590656,1745295047497,-1012.90824409,0.00047789,2]
[358590657,1745295047506,-365.21075151,0.00047789,2]
[358590658,1745295047515,-284.01458121,0.00047789,2]
[358590659,1745295047524,-220.54992612,0.00047789,2]
[358590660,1745295047533,-202.93598275,0.00047789,2]
[358590661,1745295047542,-282.91982514,0.00047789,2]
[358590662,1745295047553,-1014.15970677,0.00047789,2]
[358590663,1745295047562,-752.35226398,0.00047789,2]
[358590664,1745295047571,-1108.1761531,0.00047789,2]
[358590665,1745295047580,-162.91,0.00047789,2]
[358590666,1745295047589,-161.83499928,0.00047789,2]
[358590667,1745295047598,-873.08133739,0.00047789,2]
[358590668,1745295047607,-150.0,0.00047789,2]
[358590669,1745295047616,-964.11907785,0.00047789,2]
[358590670,1745295047625,-900.52152572,0.00047789,2]
[358590671,1745295047634,-4000.0,0.00047789,2]
[358590672,1745295047643,-562.77993246,0.00047789,5]
[358590673,1745295047653,-1064.69330814,0.00047789,2]
[358590674,1745295047662,-1987.07024843,0.00047789,5]
[358590675,1745295047671,-978.0473353,0.00047789,5]
[358590676,1745295047680,-802.95509996,0.00047789,5]
[358590677,1745295047690,-592.82192054,0.00047789,5]
[358590678,1745295047699,-218.8577335,0.00047789,5]
[358590679,1745295047708,-1080.88112758,0.00047789,5]
[358590680,1745295047718,-800.0,0.00047789,5]
[358590681,1745295047727,-564.32642503,0.00047789,5]
[358590682,1745295047736,-3460.81300672,0.000478,2]
[358590683,1745295047746,-761.0,0.000478,30]
[358590684,1745295047755,-514.6549,0.000478,30]
[358590685,1745295047805,-959.29977288,0.00047867,60]
[358590686,1745295047814,-10000.000001,0.000479,10]
[358590687,1745295047823,-250.0,0.000479,30]
[358590688,1745295047832,-250.0,0.000479,30]
[358590689,1745295047842,-250.0,0.000479,30]
[358590690,1745295047851,-250.0,0.000479,30]
[358590691,1745295047860,-250.0,0.000479,30]
[358590692,1745295047869,-250.0,0.000479,30]
[358590693,1745295047879,-250.0,0.000479,30]
[358590694,1745295047888,-250.0,0.000479,30]
[358590695,1745295047899,-289.34,0.000479,30]
[358590696,1745295047911,-250.0,0.000479,30]
[358590697,1745295047921,-249.9,0.000479,30]
[358590698,1745295047930,-150.0,0.00047945,2]
[358590699,1745295047942,-151.0,0.00047945,14]
[358590700,1745295047951,-151.0,0.00047945,14]
[358590701,1745295047960,-700.0,0.0004797,3]
[358590702,1745295047969,-700.0,0.0004797,3]
[358590703,1745295047978,-400.0,0.0004797,3]
[358590704,1745295047988,-400.0,0.0004797,3]
[358590705,1745295047997,-336.42484724,0.00047988,2]
[358590706,1745295048006,-86888.0,0.00048,30]
[358590707,1745295048016,-1000.0,0.00048,120]
[358590708,1745295048025,-515.9342496,0.00048,120]
[358590709,1745295048034,-562.0,0.00048,120]
[358590710,1745295048044,-180.90111,0.00048,14]
[358590711,1745295048053,-995.88,0.00048,103]
[358590712,1745295048062,-995.88,0.0004815,104]
[358590713,1745295048072,-3078.13,0.000482,2]
[358590714,1745295048082,-615.62,0.000482,2]
[358590715,1745295048092,-861.88,0.000482,2]
[358590716,1745295048101,-172.37,0.000482,2]
[358590717,1745295048110,-151.0,0.000482,14]
[358590718,1745295048119,-623.8031,0.000482,2]
[358590719,1745295048128,-623.8031,0.000482,2]
[358590720,1745295048138,-162.942357,0.000482,14]
[358590721,1745295048147,-228.888657,0.000482,14]
[358590722,1745295048157,-151.0,0.000482,14]
[358590723,1745295048167,-155.229973,0.000482,14]
[358590724,1745295048176,-168.179021,0.000482,14]
[358590725,1745295048186,-157.852598,0.000482,14]
[358590726,1745295048195,-200.0,0.00048267,7]
[358590727,1745295048204,-151.0,0.000483,14]
[358590728,1745295048213,-534.94732,0.000483,14]
[358590729,1745295048223,-151.0,0.000483,14]